[Event "Open Gent 2023 Unrated"]
[Site "Gent, Belgium"]
[Date "2023.07.17"]
[Round "5.1"]
[White "Froeyman, Helmut"]
[Black "Kegels, Pascal"]
[Result "1-0"]
[TimeControl "90'+30''"]
[WhiteTitle "FM"]
[WhiteElo "2308"]
[BlackElo "2057"]

1. e4 {[%clk 01:30:57]} {[%emt 00:00:02]} e6 {[%clk 01:28:55]} {[%emt
00:02:05]} 2. d4 {[%clk 01:31:15]} {[%emt 00:00:12]} d5 {[%clk 01:29:19]}
{[%emt 00:00:06]} 3. Nc3 {[%clk 01:31:38]} {[%emt 00:00:06]} Nf6 {[%clk
01:29:42]} {[%emt 00:00:08]} 4. e5 {[%clk 01:31:38]} {[%emt 00:00:30]} Nfd7
{[%clk 01:30:02]} {[%emt 00:00:11]} 5. f4 {[%clk 01:31:32]} {[%emt 00:00:35]}
a6 {[%clk 01:28:33]} {[%emt 00:02:00]} 6. Nf3 {[%clk 01:27:37]} {[%emt
00:04:24]} c5 {[%clk 01:28:20]} {[%emt 00:00:44]} 7. Be3 {[%clk 01:26:10]}
{[%emt 00:01:57]} b5 {[%clk 01:25:31]} {[%emt 00:03:19]} 8. Qd2 {[%clk
01:15:29]} {[%emt 00:11:10]} Nc6 {[%clk 01:17:30]} {[%emt 00:08:32]} 9. dxc5
{[%clk 01:15:00]} {[%emt 00:00:58]} Bxc5 {[%clk 01:15:40]} {[%emt 00:02:20]} 10.
Bd3 {[%clk 01:14:02]} {[%emt 00:01:28]} Qb6 {[%clk 01:09:57]} {[%emt 00:06:14]}
11. Bf2 {[%clk 01:13:40]} {[%emt 00:00:51]} Bb7 {[%clk 01:02:28]} {[%emt
00:07:59]} 12. O-O {[%clk 01:09:14]} {[%emt 00:04:55]} g6 {[%clk 00:55:10]}
{[%emt 00:07:48]} 13. a3 {[%clk 01:05:04]} {[%emt 00:04:40]} O-O-O {[%clk
00:45:33]} {[%emt 00:10:07]} 14. b4 {[%clk 00:59:59]} {[%emt 00:05:35]} Bxf2+
{[%clk 00:45:19]} {[%emt 00:00:44]} 15. Qxf2 {[%clk 00:53:49]} {[%emt
00:06:39]} Qxf2+ {[%clk 00:41:42]} {[%emt 00:04:08]} 16. Kxf2 {[%clk 00:51:55]}
{[%emt 00:02:24]} f6 {[%clk 00:40:54]} {[%emt 00:01:18]} 17. exf6 {[%clk
00:43:40]} {[%emt 00:08:46]} Rdf8 {[%clk 00:40:38]} {[%emt 00:00:46]} 18. Rae1
{[%clk 00:38:45]} {[%emt 00:05:24]} Rxf6 {[%clk 00:40:45]} {[%emt 00:00:23]} 19.
Kg1 {[%clk 00:37:41]} {[%emt 00:01:34]} Kc7 {[%clk 00:36:12]} {[%emt 00:05:03]}
20. Ne2 {[%clk 00:37:13]} {[%emt 00:00:58]} Kd6 {[%clk 00:36:00]} {[%emt
00:00:43]} 21. Ned4 {[%clk 00:32:51]} {[%emt 00:04:52]} Nxd4 {[%clk 00:33:12]}
{[%emt 00:03:18]} 22. Nxd4 {[%clk 00:33:18]} {[%emt 00:00:03]} Rhf8 {[%clk
00:33:19]} {[%emt 00:00:23]} 23. Rf3 {[%clk 00:28:11]} {[%emt 00:05:36]} e5
{[%clk 00:30:30]} {[%emt 00:03:19]} 24. fxe5+ {[%clk 00:28:31]} {[%emt
00:00:10]} Nxe5 {[%clk 00:30:48]} {[%emt 00:00:12]} 25. Rfe3 {[%clk 00:28:04]}
{[%emt 00:00:56]} Nxd3 {[%clk 00:30:07]} {[%emt 00:01:12]} 26. cxd3 {[%clk
00:26:32]} {[%emt 00:02:02]} Bc8 {[%clk 00:30:16]} {[%emt 00:00:21]} 27. h3
{[%clk 00:17:40]} {[%emt 00:09:21]} Rf4 {[%clk 00:26:10]} {[%emt 00:04:36]} 28.
Ne6 {[%clk 00:16:57]} {[%emt 00:01:13]} Bxe6 {[%clk 00:24:29]} {[%emt
00:02:11]} 29. Rxe6+ {[%clk 00:17:22]} {[%emt 00:00:05]} Kd7 {[%clk 00:22:57]}
{[%emt 00:02:02]} 30. Re7+ {[%clk 00:12:25]} {[%emt 00:05:27]} Kd8 {[%clk
00:22:30]} {[%emt 00:00:57]} 31. Ra7 {[%clk 00:10:16]} {[%emt 00:02:39]} R8f7
{[%clk 00:19:40]} {[%emt 00:03:19]} 32. Rxa6 {[%clk 00:10:04]} {[%emt
00:00:43]} Rc7 {[%clk 00:19:04]} {[%emt 00:01:06]} 33. Rd6+ {[%clk 00:09:22]}
{[%emt 00:01:12]} Kc8 {[%clk 00:19:30]} {[%emt 00:00:02]} 34. Rxd5 {[%clk
00:09:05]} {[%emt 00:00:50]} Rc3 {[%clk 00:19:36]} {[%emt 00:00:24]} 35. Re7
{[%clk 00:07:35]} {[%emt 00:01:58]} Rxa3 {[%clk 00:19:21]} {[%emt 00:00:48]} 36.
Rxb5 {[%clk 00:07:07]} {[%emt 00:00:58]} Rxd3 {[%clk 00:15:31]} {[%emt
00:04:19]} 37. Rxh7 {[%clk 00:07:21]} {[%emt 00:00:16]} Rfd4 {[%clk 00:14:09]}
{[%emt 00:01:52]} 38. Rg5 {[%clk 00:06:54]} {[%emt 00:00:57]} Rxb4 {[%clk
00:14:21]} {[%emt 00:00:18]} 39. Rxg6 {[%clk 00:07:19]} {[%emt 00:00:04]} Rd8
{[%clk 00:14:37]} {[%emt 00:00:11]} 40. Kh2 {[%clk 00:07:11]} {[%emt 00:00:40]}
Rb2 {[%clk 00:14:57]} {[%emt 00:00:10]} 41. h4 {[%clk 00:06:58]} {[%emt
00:00:43]} Rb4 {[%clk 00:15:09]} {[%emt 00:00:18]} 42. Kh3 {[%clk 00:07:02]}
{[%emt 00:00:25]} Rd3+ {[%clk 00:15:36]} {[%emt 00:00:03]} 43. g3 {[%clk
00:07:14]} {[%emt 00:00:19]} Rd8 {[%clk 00:16:02]} {[%emt 00:00:05]} 44. Rhg7
{[%clk 00:06:13]} {[%emt 00:01:30]} 1-0

[Event "Open Gent 2023 Unrated"]
[Site "Gent, Belgium"]
[Date "2023.07.17"]
[Round "5.3"]
[White "Vandelacluze, Ian"]
[Black "Plomp, Micha"]
[Result "1/2-1/2"]
[TimeControl "90'+30''"]
[WhiteElo "2170"]
[BlackElo "2130"]

1. d4 {[%clk 01:30:40]} {[%emt 00:00:18]} e6 {[%clk 01:29:13]} {[%emt
00:01:49]} 2. e4 {[%clk 01:29:31]} {[%emt 00:01:39]} d5 {[%clk 01:29:25]}
{[%emt 00:00:18]} 3. Nd2 {[%clk 01:29:26]} {[%emt 00:00:34]} Nf6 {[%clk
01:29:19]} {[%emt 00:00:36]} 4. e5 {[%clk 01:29:46]} {[%emt 00:00:10]} Nfd7
{[%clk 01:29:40]} {[%emt 00:00:10]} 5. Bd3 {[%clk 01:29:56]} {[%emt 00:00:18]}
c5 {[%clk 01:29:51]} {[%emt 00:00:20]} 6. c3 {[%clk 01:30:19]} {[%emt
00:00:07]} Nc6 {[%clk 01:30:15]} {[%emt 00:00:07]} 7. Ne2 {[%clk 01:30:37]}
{[%emt 00:00:11]} cxd4 {[%clk 01:30:30]} {[%emt 00:00:15]} 8. cxd4 {[%clk
01:30:59]} {[%emt 00:00:08]} f6 {[%clk 01:30:52]} {[%emt 00:00:08]} 9. exf6
{[%clk 01:30:52]} {[%emt 00:00:37]} Nxf6 {[%clk 01:31:12]} {[%emt 00:00:10]} 10.
Nf3 {[%clk 01:30:15]} {[%emt 00:01:07]} Qc7 {[%clk 01:31:03]} {[%emt 00:00:39]}
11. Bf4 {[%clk 01:20:00]} {[%emt 00:10:42]} Bb4+ {[%clk 01:29:42]} {[%emt
00:01:53]} 12. Nd2 {[%clk 01:19:12]} {[%emt 00:01:18]} Qe7 {[%clk 01:23:40]}
{[%emt 00:06:31]} 13. O-O {[%clk 01:16:25]} {[%emt 00:03:18]} Nh5 {[%clk
01:14:31]} {[%emt 00:09:40]} 14. Be3 {[%clk 01:15:21]} {[%emt 00:01:32]} O-O
{[%clk 01:14:04]} {[%emt 00:00:59]} 15. f4 {[%clk 01:06:52]} {[%emt 00:08:57]}
Bd6 {[%clk 01:07:57]} {[%emt 00:06:39]} 16. g3 {[%clk 01:00:17]} {[%emt
00:07:05]} Nf6 {[%clk 01:03:27]} {[%emt 00:05:00]} 17. Nf3 {[%clk 00:54:43]}
{[%emt 00:06:03]} Bd7 {[%clk 00:58:39]} {[%emt 00:05:19]} 18. Ne5 {[%clk
00:51:26]} {[%emt 00:03:47]} Be8 {[%clk 00:55:23]} {[%emt 00:03:47]} 19. Nc3
{[%clk 00:49:55]} {[%emt 00:02:01]} Bh5 {[%clk 00:53:04]} {[%emt 00:02:48]} 20.
Qd2 {[%clk 00:49:21]} {[%emt 00:01:04]} Ng4 {[%clk 00:47:25]} {[%emt 00:06:09]}
21. Nxg4 {[%clk 00:36:19]} {[%emt 00:13:32]} Bxg4 {[%clk 00:47:45]} {[%emt
00:00:09]} 22. Kg2 {[%clk 00:35:06]} {[%emt 00:01:43]} Qf7 {[%clk 00:47:25]}
{[%emt 00:00:50]} 23. h3 {[%clk 00:33:45]} {[%emt 00:01:52]} Bf5 {[%clk
00:47:31]} {[%emt 00:00:24]} 24. Be2 {[%clk 00:33:31]} {[%emt 00:00:44]} Bb4
{[%clk 00:44:24]} {[%emt 00:03:37]} 25. Bf3 {[%clk 00:32:09]} {[%emt 00:01:52]}
Qg6 {[%clk 00:41:49]} {[%emt 00:03:05]} 26. Kh2 {[%clk 00:31:11]} {[%emt
00:01:27]} Rac8 {[%clk 00:39:07]} {[%emt 00:03:13]} 27. Rac1 {[%clk 00:31:03]}
{[%emt 00:00:38]} Na5 {[%clk 00:38:34]} {[%emt 00:01:03]} 28. g4 {[%clk
00:23:22]} {[%emt 00:08:11]} Bxc3 {[%clk 00:10:19]} {[%emt 00:28:45]} 29. Rxc3
{[%clk 00:22:56]} {[%emt 00:00:56]} Nc4 {[%clk 00:10:42]} {[%emt 00:00:07]} 30.
Qg2 {[%emt 00:09:58]} 1/2-1/2

[Event "Open Gent 2023 Unrated"]
[Site "Gent, Belgium"]
[Date "2023.07.17"]
[Round "5.4"]
[White "van der Linden, Marco"]
[Black "Oorebeek, Erwin"]
[Result "1/2-1/2"]
[TimeControl "90'+30''"]
[WhiteElo "2082"]
[BlackElo "2199"]

1. d4 {[%clk 01:25:52]} {[%emt 00:05:06]} Nf6 {[%clk 01:30:48]} {[%emt
00:00:13]} 2. c4 {[%clk 01:26:06]} {[%emt 00:00:13]} c5 {[%clk 01:31:12]}
{[%emt 00:00:10]} 3. d5 {[%clk 01:26:09]} {[%emt 00:00:26]} b5 {[%clk
01:28:15]} {[%emt 00:03:27]} 4. cxb5 {[%clk 01:26:19]} {[%emt 00:00:20]} a6
{[%clk 01:28:42]} {[%emt 00:00:04]} 5. bxa6 {[%clk 01:26:10]} {[%emt 00:00:38]}
e6 {[%clk 01:28:46]} {[%emt 00:00:26]} 6. Nc3 {[%clk 01:25:32]} {[%emt
00:01:08]} exd5 {[%clk 01:28:38]} {[%emt 00:00:39]} 7. Nxd5 {[%clk 01:25:44]}
{[%emt 00:00:18]} Be7 {[%clk 01:29:05]} {[%emt 00:00:03]} 8. e3 {[%clk
01:19:11]} {[%emt 00:07:02]} O-O {[%clk 01:28:10]} {[%emt 00:01:25]} 9. Nf3
{[%clk 01:18:49]} {[%emt 00:00:53]} Nxd5 {[%clk 01:24:41]} {[%emt 00:03:59]} 10.
Qxd5 {[%clk 01:19:11]} {[%emt 00:00:07]} Nc6 {[%clk 01:25:05]} {[%emt
00:00:03]} 11. Bc4 {[%clk 01:13:17]} {[%emt 00:06:28]} Bxa6 {[%clk 01:25:00]}
{[%emt 00:00:36]} 12. Bxa6 {[%clk 01:13:31]} {[%emt 00:00:16]} Qa5+ {[%clk
01:22:46]} {[%emt 00:02:43]} 13. Qd2 {[%clk 01:05:51]} {[%emt 00:08:09]} Qxa6
{[%clk 01:22:58]} {[%emt 00:00:20]} 14. Qe2 {[%clk 01:06:11]} {[%emt 00:00:09]}
d5 {[%clk 01:13:54]} {[%emt 00:09:34]} 15. Qxa6 {[%clk 01:00:37]} {[%emt
00:06:04]} Rxa6 {[%clk 01:13:40]} {[%emt 00:00:45]} 16. O-O {[%clk 01:00:52]}
{[%emt 00:00:09]} Bf6 {[%clk 01:09:50]} {[%emt 00:04:26]} 17. Rd1 {[%clk
00:54:53]} {[%emt 00:06:29]} Rd8 {[%clk 00:59:40]} {[%emt 00:10:40]} 18. a3
{[%clk 00:48:54]} {[%emt 00:06:29]} Na5 {[%clk 00:52:40]} {[%emt 00:07:29]} 19.
Rb1 {[%clk 00:43:17]} {[%emt 00:06:07]} Nb3 {[%clk 00:49:45]} {[%emt 00:03:25]}
20. Nd2 {[%clk 00:39:15]} {[%emt 00:04:31]} Rb6 {[%clk 00:48:19]} {[%emt
00:01:57]} 21. g3 {[%clk 00:36:13]} {[%emt 00:03:32]} c4 {[%clk 00:45:45]}
{[%emt 00:03:05]} 22. Nxb3 {[%clk 00:27:47]} {[%emt 00:08:55]} Rxb3 {[%clk
00:44:19]} {[%emt 00:01:57]} 23. Ra1 {[%clk 00:24:42]} {[%emt 00:03:34]} Rxb2
{[%clk 00:37:59]} {[%emt 00:06:51]} 24. Bxb2 {[%clk 00:22:13]} {[%emt
00:02:58]} Bxb2 {[%clk 00:38:23]} {[%emt 00:00:06]} 25. Ra2 {[%clk 00:21:48]}
{[%emt 00:00:53]} c3 {[%clk 00:38:25]} {[%emt 00:00:29]} 26. Rxb2 {[%clk
00:21:42]} {[%emt 00:00:36]} cxb2 {[%clk 00:38:18]} {[%emt 00:00:37]} 27. Rb1
{[%clk 00:22:04]} {[%emt 00:00:07]} Rb8 {[%emt 00:02:11]} 1/2-1/2

[Event "Open Gent 2023 Unrated"]
[Site "Gent, Belgium"]
[Date "2023.07.17"]
[Round "6.1"]
[White "Goormachtigh, Johan"]
[Black "Froeyman, Helmut"]
[Result "1/2-1/2"]
[TimeControl "90'+30''"]
[WhiteTitle "FM"]
[BlackTitle "FM"]
[WhiteElo "2183"]
[BlackElo "2308"]

1. d4 {[%clk 01:22:15]} {[%emt 00:08:44]} f5 {[%clk 01:30:45]} {[%emt
00:00:15]} 2. g3 {[%clk 01:22:27]} {[%emt 00:00:18]} Nf6 {[%clk 01:31:09]}
{[%emt 00:00:06]} 3. Bg2 {[%clk 01:22:54]} {[%emt 00:00:04]} e6 {[%clk
01:31:24]} {[%emt 00:00:14]} 4. Nf3 {[%clk 01:23:04]} {[%emt 00:00:21]} d5
{[%clk 01:31:46]} {[%emt 00:00:07]} 5. O-O {[%clk 01:23:28]} {[%emt 00:00:06]}
Bd6 {[%clk 01:32:10]} {[%emt 00:00:05]} 6. c4 {[%clk 01:23:43]} {[%emt
00:00:16]} c6 {[%clk 01:32:31]} {[%emt 00:00:08]} 7. Nbd2 {[%clk 01:23:42]}
{[%emt 00:00:32]} Nbd7 {[%clk 01:25:24]} {[%emt 00:07:37]} 8. Qc2 {[%clk
01:20:35]} {[%emt 00:03:37]} O-O {[%clk 01:23:20]} {[%emt 00:02:33]} 9. b3
{[%clk 01:16:32]} {[%emt 00:04:34]} Qe7 {[%clk 01:20:49]} {[%emt 00:03:00]} 10.
Bb2 {[%clk 01:16:45]} {[%emt 00:00:17]} b6 {[%clk 01:19:35]} {[%emt 00:01:44]}
11. Ne5 {[%clk 01:02:41]} {[%emt 00:14:34]} Bb7 {[%clk 01:18:31]} {[%emt
00:01:34]} 12. Rad1 {[%clk 00:57:41]} {[%emt 00:05:29]} Rac8 {[%clk 01:15:22]}
{[%emt 00:03:38]} 13. Ndf3 {[%clk 00:53:35]} {[%emt 00:04:37]} Rfd8 {[%clk
01:05:20]} {[%emt 00:10:32]} 14. Qb1 {[%clk 00:45:15]} {[%emt 00:08:50]} c5
{[%clk 00:59:54]} {[%emt 00:05:55]} 1/2-1/2

[Event "Open Gent 2023 Unrated"]
[Site "Gent, Belgium"]
[Date "2023.07.17"]
[Round "6.3"]
[White "Feelders, Ad"]
[Black "Vandelacluze, Ian"]
[Result "0-1"]
[TimeControl "90'+30''"]
[WhiteElo "2002"]
[BlackElo "2170"]

1. e4 {[%clk 01:30:56]} {[%emt 00:00:03]} c5 {[%clk 01:30:52]} {[%emt
00:00:09]} 2. c3 {[%clk 01:31:16]} {[%emt 00:00:09]} d5 {[%clk 01:31:07]}
{[%emt 00:00:14]} 3. exd5 {[%clk 01:31:38]} {[%emt 00:00:09]} Qxd5 {[%clk
01:31:30]} {[%emt 00:00:07]} 4. d4 {[%clk 01:31:58]} {[%emt 00:00:10]} g6
{[%clk 01:31:00]} {[%emt 00:01:00]} 5. Nf3 {[%clk 01:31:02]} {[%emt 00:01:26]}
Bg7 {[%clk 01:31:07]} {[%emt 00:00:23]} 6. Na3 {[%clk 01:29:50]} {[%emt
00:01:42]} cxd4 {[%clk 01:30:32]} {[%emt 00:01:05]} 7. Bc4 {[%clk 01:29:45]}
{[%emt 00:00:35]} Qe4+ {[%clk 01:30:46]} {[%emt 00:00:15]} 8. Be3 {[%clk
01:30:06]} {[%emt 00:00:10]} Nh6 {[%clk 01:30:44]} {[%emt 00:00:31]} 9. cxd4
{[%clk 01:30:02]} {[%emt 00:00:34]} O-O {[%clk 01:29:18]} {[%emt 00:01:55]} 10.
Nb5 {[%clk 01:26:59]} {[%emt 00:03:35]} Nc6 {[%clk 01:28:53]} {[%emt 00:00:54]}
11. Nc3 {[%clk 01:25:11]} {[%emt 00:02:19]} Qg4 {[%clk 01:29:07]} {[%emt
00:00:14]} 12. h3 {[%clk 01:21:18]} {[%emt 00:04:24]} Qh5 {[%clk 01:29:23]}
{[%emt 00:00:13]} 13. d5 {[%clk 01:05:24]} {[%emt 00:16:25]} Ne5 {[%clk
01:14:20]} {[%emt 00:15:32]} 14. Be2 {[%clk 00:55:40]} {[%emt 00:10:13]} Bg4
{[%clk 01:07:49]} {[%emt 00:07:02]} 15. Nxe5 {[%clk 00:47:45]} {[%emt
00:08:25]} Bxe2 {[%clk 01:07:39]} {[%emt 00:00:40]} 16. Qxe2 {[%clk 00:47:59]}
{[%emt 00:00:16]} Qxe5 {[%clk 01:07:53]} {[%emt 00:00:15]} 17. Bxh6 {[%clk
00:46:13]} {[%emt 00:02:18]} Qxe2+ {[%clk 01:08:10]} {[%emt 00:00:13]} 18. Kxe2
{[%clk 00:46:37]} {[%emt 00:00:06]} Bxh6 {[%clk 01:08:32]} {[%emt 00:00:08]} 19.
Rhe1 {[%clk 00:45:53]} {[%emt 00:01:13]} Rfd8 {[%clk 01:06:16]} {[%emt
00:02:46]} 20. Kf1 {[%clk 00:43:34]} {[%emt 00:02:48]} Kf8 {[%clk 01:01:46]}
{[%emt 00:05:01]} 21. Rad1 {[%clk 00:43:15]} {[%emt 00:00:49]} Rd7 {[%clk
01:00:37]} {[%emt 00:01:39]} 22. Rd3 {[%clk 00:41:27]} {[%emt 00:02:17]} Bg7
{[%clk 00:58:39]} {[%emt 00:02:28]} 23. b3 {[%clk 00:34:36]} {[%emt 00:07:21]}
Rad8 {[%clk 00:57:56]} {[%emt 00:01:13]} 24. Red1 {[%clk 00:33:52]} {[%emt
00:01:15]} e6 {[%clk 00:50:48]} {[%emt 00:07:37]} 25. d6 {[%clk 00:31:06]}
{[%emt 00:03:15]} Bxc3 {[%clk 00:50:48]} {[%emt 00:00:31]} 26. Rxc3 {[%clk
00:31:29]} {[%emt 00:00:07]} Rxd6 {[%clk 00:50:55]} {[%emt 00:00:24]} 27. Rxd6
{[%clk 00:31:49]} {[%emt 00:00:10]} Rxd6 {[%clk 00:51:17]} {[%emt 00:00:07]} 28.
Rc7 {[%clk 00:32:08]} {[%emt 00:00:11]} Ra6 {[%clk 00:48:33]} {[%emt 00:03:13]}
29. Rxb7 {[%clk 00:31:44]} {[%emt 00:00:57]} Rxa2 {[%clk 00:48:55]} {[%emt
00:00:08]} 30. g3 {[%clk 00:30:46]} {[%emt 00:01:27]} a5 {[%clk 00:46:42]}
{[%emt 00:02:43]} 31. Ra7 {[%clk 00:28:35]} {[%emt 00:02:42]} Rb2 {[%clk
00:44:07]} {[%emt 00:03:04]} 32. Rxa5 {[%clk 00:28:55]} {[%emt 00:00:11]} Rxb3
{[%clk 00:44:30]} {[%emt 00:00:07]} 33. Ra7 {[%clk 00:28:44]} {[%emt 00:00:40]}
Kg7 {[%clk 00:42:06]} {[%emt 00:02:53]} 34. h4 {[%clk 00:27:36]} {[%emt
00:01:38]} h5 {[%clk 00:39:32]} {[%emt 00:03:05]} 35. Kg2 {[%clk 00:26:59]}
{[%emt 00:01:06]} Rb5 {[%clk 00:38:12]} {[%emt 00:01:49]} 36. Kf3 {[%clk
00:25:45]} {[%emt 00:01:45]} g5 {[%clk 00:37:46]} {[%emt 00:00:57]} 37. hxg5
{[%clk 00:25:59]} {[%emt 00:00:17]} Rxg5 {[%clk 00:38:09]} {[%emt 00:00:07]} 38.
Ke3 {[%clk 00:23:54]} {[%emt 00:02:35]} Rg4 {[%clk 00:37:07]} {[%emt 00:01:32]}
39. Ra5 {[%clk 00:22:23]} {[%emt 00:02:00]} Kg6 {[%clk 00:37:05]} {[%emt
00:00:32]} 40. Ra8 {[%clk 00:22:08]} {[%emt 00:00:45]} h4 {[%clk 00:34:37]}
{[%emt 00:02:59]} 41. gxh4 {[%clk 00:21:35]} {[%emt 00:01:03]} Rxh4 {[%clk
00:34:58]} {[%emt 00:00:09]} 42. Ra6 {[%clk 00:19:57]} {[%emt 00:02:06]} Rb4
{[%clk 00:29:32]} {[%emt 00:05:53]} 43. Ra5 {[%clk 00:17:26]} {[%emt 00:03:05]}
f6 {[%clk 00:28:56]} {[%emt 00:01:06]} 44. Ra8 {[%clk 00:16:49]} {[%emt
00:01:08]} Kf5 {[%clk 00:28:39]} {[%emt 00:00:46]} 45. Ra5+ {[%clk 00:14:39]}
{[%emt 00:02:40]} e5 {[%clk 00:28:43]} {[%emt 00:00:25]} 46. Ra6 {[%clk
00:15:01]} {[%emt 00:00:08]} Rb3+ {[%clk 00:28:51]} {[%emt 00:00:22]} 47. Ke2
{[%clk 00:15:25]} {[%emt 00:00:07]} Kg5 {[%clk 00:28:48]} {[%emt 00:00:31]} 48.
Ra8 {[%clk 00:15:42]} {[%emt 00:00:14]} f5 {[%clk 00:28:55]} {[%emt 00:00:23]}
49. Rg8+ {[%clk 00:12:20]} {[%emt 00:03:53]} Kf4 {[%clk 00:29:10]} {[%emt
00:00:13]} 50. Rh8 {[%clk 00:12:28]} {[%emt 00:00:24]} Rb2+ {[%clk 00:29:27]}
{[%emt 00:00:13]} 51. Ke1 {[%clk 00:12:47]} {[%emt 00:00:11]} Ke4 {[%clk
00:27:59]} {[%emt 00:01:56]} 52. Ra8 {[%clk 00:09:24]} {[%emt 00:03:53]} f4
{[%clk 00:26:55]} {[%emt 00:01:34]} 53. Ra4+ {[%clk 00:08:18]} {[%emt
00:01:36]} Kf3 {[%clk 00:26:29]} {[%emt 00:00:55]} 54. Ra3+ {[%clk 00:08:37]}
{[%emt 00:00:13]} Kg2 {[%clk 00:24:35]} {[%emt 00:02:23]} 55. f3 {[%clk
00:08:00]} {[%emt 00:01:07]} e4 {[%clk 00:24:14]} {[%emt 00:00:51]} 0-1

[Event "Open Gent 2023 Unrated"]
[Site "Gent, Belgium"]
[Date "2023.07.17"]
[Round "6.4"]
[White "Torn, Bert"]
[Black "Van de Putte, Ben"]
[Result "1-0"]
[TimeControl "90'+30''"]
[WhiteElo "2135"]
[BlackElo "1685"]

1. Nf3 {[%clk 01:30:56]} {[%emt 00:00:02]} Nf6 {[%clk 01:13:54]} {[%emt
00:17:07]} 2. c4 {[%clk 01:31:14]} {[%emt 00:00:11]} g6 {[%clk 01:13:51]}
{[%emt 00:00:34]} 3. Nc3 {[%clk 01:31:28]} {[%emt 00:00:16]} Bg7 {[%clk
01:13:44]} {[%emt 00:00:37]} 4. e4 {[%clk 01:31:42]} {[%emt 00:00:16]} d6
{[%clk 01:13:55]} {[%emt 00:00:20]} 5. d4 {[%clk 01:32:02]} {[%emt 00:00:09]}
Bg4 {[%clk 01:13:16]} {[%emt 00:01:09]} 6. Be2 {[%clk 01:31:47]} {[%emt
00:00:44]} Nc6 {[%clk 01:10:07]} {[%emt 00:03:40]} 7. Be3 {[%clk 01:30:49]}
{[%emt 00:01:27]} Nd7 {[%clk 01:08:09]} {[%emt 00:02:30]} 8. Ng1 {[%clk
01:28:14]} {[%emt 00:03:04]} Bxe2 {[%clk 01:06:52]} {[%emt 00:01:47]} 9. Ngxe2
{[%clk 01:28:38]} {[%emt 00:00:06]} e6 {[%clk 01:06:43]} {[%emt 00:00:40]} 10.
b3 {[%clk 01:21:26]} {[%emt 00:07:41]} O-O {[%clk 01:03:58]} {[%emt 00:03:15]}
11. Qd2 {[%clk 01:20:22]} {[%emt 00:01:33]} f5 {[%clk 01:01:53]} {[%emt
00:02:36]} 12. d5 {[%clk 01:11:15]} {[%emt 00:09:36]} exd5 {[%clk 01:00:54]}
{[%emt 00:01:29]} 13. exd5 {[%clk 01:11:12]} {[%emt 00:00:32]} Nce5 {[%clk
00:59:51]} {[%emt 00:01:34]} 14. O-O {[%clk 00:57:04]} {[%emt 00:14:37]} Ng4
{[%clk 00:57:40]} {[%emt 00:02:43]} 15. Bg5 {[%clk 00:46:28]} {[%emt 00:11:06]}
Bf6 {[%clk 00:46:45]} {[%emt 00:11:25]} 16. Bxf6 {[%clk 00:45:50]} {[%emt
00:01:07]} Qxf6 {[%clk 00:46:30]} {[%emt 00:00:46]} 17. f3 {[%clk 00:40:48]}
{[%emt 00:05:31]} Nge5 {[%clk 00:45:06]} {[%emt 00:01:54]} 18. Nd4 {[%clk
00:38:26]} {[%emt 00:02:51]} Rf7 {[%clk 00:41:45]} {[%emt 00:03:52]} 19. f4
{[%clk 00:35:53]} {[%emt 00:03:02]} Ng4 {[%clk 00:41:38]} {[%emt 00:00:37]} 20.
h3 {[%clk 00:36:20]} {[%emt 00:00:03]} Nh6 {[%clk 00:41:13]} {[%emt 00:00:55]}
21. Rfe1 {[%clk 00:34:14]} {[%emt 00:02:36]} Nf8 {[%clk 00:40:25]} {[%emt
00:01:19]} 22. Re2 {[%clk 00:31:49]} {[%emt 00:02:55]} Re7 {[%clk 00:38:43]}
{[%emt 00:02:13]} 23. Rxe7 {[%clk 00:32:05]} {[%emt 00:00:14]} Qxe7 {[%clk
00:39:08]} {[%emt 00:00:04]} 24. Re1 {[%clk 00:32:24]} {[%emt 00:00:11]} Qd7
{[%clk 00:39:07]} {[%emt 00:00:32]} 25. Qe3 {[%clk 00:29:04]} {[%emt 00:03:49]}
Kf7 {[%clk 00:39:09]} {[%emt 00:00:29]} 26. Ne6 {[%clk 00:28:36]} {[%emt
00:00:58]} Ng8 {[%clk 00:38:25]} {[%emt 00:01:13]} 27. Nb5 {[%clk 00:20:55]}
{[%emt 00:08:10]} c6 {[%clk 00:37:39]} {[%emt 00:01:17]} 28. Nbc7 {[%clk
00:20:05]} {[%emt 00:01:20]} Rc8 {[%clk 00:31:09]} {[%emt 00:07:00]} 29. Ng5+
{[%clk 00:08:39]} {[%emt 00:11:56]} Kg7 {[%clk 00:31:11]} {[%emt 00:00:28]} 30.
Nce6+ {[%clk 00:08:22]} {[%emt 00:00:46]} Nxe6 {[%clk 00:30:25]} {[%emt
00:01:16]} 31. Nxe6+ {[%clk 00:08:28]} {[%emt 00:00:24]} Kf7 {[%clk 00:30:38]}
{[%emt 00:00:16]} 32. Qd4 {[%clk 00:06:12]} {[%emt 00:02:47]} Nf6 {[%clk
00:30:44]} {[%emt 00:00:24]} 33. Ng5+ {[%clk 00:06:32]} {[%emt 00:00:10]} Kg7
{[%clk 00:30:51]} {[%emt 00:00:23]} 34. Re6 {[%clk 00:04:59]} {[%emt 00:02:02]}
Rf8 {[%clk 00:30:07]} {[%emt 00:01:15]} 35. Nxh7 {[%clk 00:02:23]} {[%emt
00:03:06]} Kxh7 {[%clk 00:30:07]} {[%emt 00:00:30]} 36. Rxf6 {[%clk 00:02:48]}
{[%emt 00:00:05]} Rxf6 {[%clk 00:29:57]} {[%emt 00:00:41]} 37. Qxf6 {[%clk
00:03:16]} {[%emt 00:00:02]} cxd5 {[%clk 00:30:12]} {[%emt 00:00:15]} 38. cxd5
{[%clk 00:03:44]} {[%emt 00:00:02]} Qc7 {[%clk 00:30:08]} {[%emt 00:00:34]} 39.
Qd4 {[%clk 00:03:03]} {[%emt 00:01:11]} Qc1+ {[%clk 00:29:12]} {[%emt
00:01:26]} 40. Kh2 {[%clk 00:03:25]} {[%emt 00:00:07]} b6 {[%clk 00:27:35]}
{[%emt 00:02:08]} 41. Qc4 {[%clk 00:03:05]} {[%emt 00:00:50]} Qa3 {[%clk
00:26:04]} {[%emt 00:02:02]} 42. b4 {[%clk 00:02:43]} {[%emt 00:00:51]} a5
{[%clk 00:25:28]} {[%emt 00:01:06]} 43. Qc7+ {[%clk 00:02:39]} {[%emt
00:00:33]} Kh6 {[%clk 00:25:43]} {[%emt 00:00:17]} 44. Qxd6 {[%clk 00:02:35]}
{[%emt 00:00:33]} axb4 {[%clk 00:25:36]} {[%emt 00:00:37]} 45. Qf8+ {[%clk
00:02:39]} {[%emt 00:00:24]} Kh7 {[%clk 00:25:48]} {[%emt 00:00:19]} 46. Qe7+
{[%clk 00:03:07]} {[%emt 00:00:02]} Kh6 {[%clk 00:25:34]} {[%emt 00:00:41]} 47.
Qe5 {[%clk 00:03:25]} {[%emt 00:00:14]} Kh7 {[%clk 00:22:49]} {[%emt 00:03:15]}
48. d6 {[%clk 00:03:35]} {[%emt 00:00:20]} 1-0